Cogmind - Beta 12 @@@ ROGUE MODE // 2023.06.06 @ 19:36:39 Player: Jimzor Result: Self-destructed Performance ------------- Evolutions (2) 1000 Regions Visited (3) 600 Robots Destroyed (66) 330 Value Destroyed (1194) 1194 Prototype IDs (2) 40 Alien Tech Used (0) 0 Bonus (16) 16 TOTAL SCORE: 3180 Bonus ------- High Alert Combat Kills 16 Cogmind --------- Core Integrity 156/550 Matter 300/300 Energy 100/100 System Corruption 0% Temperature Cool (0) Movement Flying (40) Location -8/Materials Parts ------- > --- POWER (1) -------- (None) > --- PROPULSION (3) --- Flight Unit > --- UTILITY (5) ------ Visual Processing Unit Signal Interpreter > --- WEAPON (2) ------- (None) > --- INVENTORY (5) ---- Heavy Ion Engine Flight Unit Flight Unit Sensor Array Terrain Scan Processor Peak State ------------ > --- POWER ------------ Heavy Ion Engine > --- PROPULSION ------- Wheel Wheel Wheel > --- UTILITY ---------- Large Storage Unit Visual Processing Unit Sensor Array Signal Interpreter > --- WEAPON ----------- Improved Medium Laser Improved Medium Laser > --- INVENTORY -------- Heavy Ion Engine Wheel Wheel Flight Unit Flight Unit Flight Unit Flight Unit Small Storage Unit Medium Storage Unit Terrain Scan Processor Light Armor Plating Beam Rifle Grenade Launcher Katana [Rating: 19] Favorites ----------- Power Ion Engine Engine Ion Engine Propulsion Wheel Wheel Wheel Flight Unit Flight Unit Utility Large Storage Unit Device Sensor Array Storage Large Storage Unit Processor Visual Processing Unit Protection Light Armor Plating Weapon Beam Rifle Energy Gun Beam Rifle Ballistic Gun Heavy Assault Rifle Launcher Grenade Launcher Slashing Weapon Katana Build | -11 -10 -9 -8 ------- Run | Jun Mat Mat Mat Slots Evolved 4 | . . 2 2 Power . | . . . . Propulsion 1 | . . . 1 Utility 3 | . . 2 1 Weapon . | . . . . Parts Attached 55 | 8 11 25 11 Power 6 | 1 2 3 . Engine 6 | 1 2 3 . Core . | . . . . Reactor . | . . . . Propulsion 20 | 3 4 7 6 Treads . | . . . . Leg . | . . . . Wheel 17 | 3 4 7 3 Hover . | . . . . Flight 3 | . . . 3 Utility 15 | 2 2 10 1 Device 6 | 1 1 4 . Storage 2 | 1 1 . . Processor 3 | . . 3 . Hackware . | . . . . Protection 4 | . . 3 1 Artifact . | . . . . Weapon 14 | 2 3 5 4 Energy Gun 9 | 1 3 3 2 Energy Cannon . | . . . . Ballistic Gun 3 | 1 . 2 . Ballistic Cannon . | . . . . Launcher 1 | . . . 1 Special Weapon . | . . . . Impact Weapon . | . . . . Slashing Weapon 1 | . . . 1 Piercing Weapon . | . . . . Special Melee Weapon . | . . . . Unidentified Prototypes 2 | . . 2 . Parts Lost 23 | . 2 9 12 Power 3 | . . 2 1 Propulsion 10 | . 1 4 5 Utility 2 | . . 1 1 Weapon 8 | . 1 2 5 Highest Loss Streak 12 | . 1 6 12 To Critical Strikes . | . . . . Average Slot Usage (%) 94 | . 100 94 74 Engine 11 | . 14 10 5 Wheel 22 | . 28 19 17 Device 9 | . 14 7 4 Storage 11 | . 14 11 8 Processor 12 | . . 22 18 Protection 1 | . . 1 5 Energy Gun 15 | . 18 13 12 Ballistic Gun 8 | . 9 8 . Naked Turns . | . . . . Heaviest Build 38 | 14 32 35 38 Greatest Support 30 | 26 20 20 30 Greatest Overweight (x) 8 | . 1 8 6 Average Overweight (x) . | . . 1 . Largest Inventory Capacity 15 | 8 15 15 15 Average Capacity 14 | 7 14 15 13 Most Carried 15 | 8 15 15 14 Average Carried 12 | 3 12 14 11 Final Capacity 15 | 8 15 15 5 Final Carried 15 | 8 15 15 5 Class Distribution -------------------- 40% | Mutant 30% | Scavenger-Skirmisher 28% | Scavenger-Mutant Dominant Class ---------------- Mutant | -10/Materials Scavenger-Skirmisher | -9/Materials Scavenger-Skirmisher | -8/Materials Resources | -11 -10 -9 -8 ----------- Run | Jun Mat Mat Mat Matter Collected 997 | 293 157 399 148 Remotely . | . . . . Salvage Created 2319 | 175 639 1266 239 Parts 129 | 13 41 66 9 Haulers Intercepted 5 | . 2 3 . Recyclers Shooed 5 | . 4 1 . Parts Field Recycled . | . . . . Retrieved Matter . | . . . . Parts Self-Destructed . | . . . . Prevented . | . . . . Kills | -11 -10 -9 -8 ------- Run | Jun Mat Mat Mat Combat Hostiles Destroyed 32 | . 11 16 5 Melee 1 | . . . 1 Guns 29 | . 11 16 2 AOE 2 | . . . 2 Classes Destroyed 10 | 3 4 3 . Worker 9 | 2 2 3 2 Builder 3 | . . 3 . Tunneler 4 | 4 . . . Hauler 5 | . 2 3 . Recycler 6 | 1 2 3 . Watcher 7 | . 3 4 . Swarmer 10 | . 6 4 . Grunt 18 | . 5 8 5 Duelist 2 | . . 2 . Sentry 2 | . . 2 . Best Kill Streak 8 | 5 4 8 4 Combat Bots Only 5 | . 4 5 4 Max Kills in Single Turn 2 | 2 1 2 1 Gunslinging . | . . . . Exploded 1 | . . . 1 Melee 1 | . . . 1 Uniques/NPCs Destroyed . | . . . . Combat | -11 -10 -9 -8 -------- Run | Jun Mat Mat Mat Damage Taken 2763 | . 464 1109 1190 Core 765 | . 104 267 394 Absorbed by Shields . | . . . . Core Remaining (%) 63 | 100 58 33 . Volleys Fired 182 | 17 65 82 18 Largest 2 | 2 2 2 2 Hottest 112 | 70 112 112 112 Shots Fired 341 | 34 130 148 29 Gun 337 | 34 130 148 25 Cannon . | . . . . Launcher 4 | . . . 4 Special . | . . . . Kinetic 145 | 17 61 67 . Thermal 192 | 17 69 81 25 Explosive 4 | . . . 4 Electromagnetic . | . . . . Robot Hit Streak 12 | 11 12 9 8 Robot Miss Streak 8 | 3 8 6 3 Penetration Max . | . . . . Secondary Targets 4 | . 2 2 . Max Gunslinging Chain 1 | . 1 1 . Shots Hit Robots 203 | 21 68 91 23 Core Hits 98 | 11 33 41 13 Critical Kills . | . . . . Critical Parts Destroyed . | . . . . Critical Strikes 13 | 2 2 4 5 Burn 12 | 2 2 4 4 Sever 1 | . . . 1 Melee Attacks 5 | . . . 5 Impact . | . . . . Slashing 5 | . . . 5 Piercing . | . . . . Sneak Attacks . | . . . . Combat Hostiles . | . . . . Follow-up Attacks . | . . . . Damage Inflicted 3027 | 235 735 1427 630 Guns 2668 | 235 735 1427 271 Cannons . | . . . . Explosions 240 | . . . 240 Melee 119 | . . . 119 Ramming . | . . . . Kinetic 998 | 86 285 627 . Thermal 1670 | 149 450 800 271 Explosive 240 | . . . 240 Electromagnetic . | . . . . Impact . | . . . . Slashing 119 | . . . 119 Piercing . | . . . . Highest Corruption . | . . . . Average Corruption . | . . . . Corruption Purged . | . . . . Corruption Blocked . | . . . . Overload Shots . | . . . . Overflow Damage 11 | . . . 11 Projectiles . | . . . . Explosions 11 | . . . 11 Melee . | . . . . Knockbacks . | . . . . Impact . | . . . . Kinetic . | . . . . Secondary . | . . . . Self-Inflicted Damage 85 | . . . 85 Shots 3 | . . . 3 Rammed . | . . . . Targets Rammed . | . . . . Kicked . | . . . . Crushed . | . . . . Highest Temperature 366 | 100 342 287 366 Average Temperature 111 | 47 101 101 213 Received Heat Transfer 1221 | . 120 453 648 Effects 3 | . 1 . 2 Energy Bleed 1 | . 1 . . Interference 1 | . . . 1 Matter Decay 1 | . . . 1 Siege Activations . | . . . . Robots Corrupted . | . . . . Combat Hostiles . | . . . . Parts Fried . | . . . . Impact Corruptions . | . . . . Robots Melted . | . . . . Combat Hostiles . | . . . . Parts Melted 12 | 3 2 6 1 Heat Transferred 5180 | 592 1480 2220 888 Parts Sabotaged . | . . . . Parts Stolen . | . . . . Parts Stripped . | . . . . Power Chain Reactions . | . . . . Missiles Intercepted . | . . . . Alert | -11 -10 -9 -8 ------- Run | Jun Mat Mat Mat Peak Influence 448 | 35 315 448 262 Initial 189 | . 22 96 189 Average 224 | 13 180 296 212 Maximum Alert Level 2 | . 1 2 1 Low Security (%) 44 | 100 67 17 43 Level 1 46 | . 32 63 56 Level 2 8 | . . 18 . Level 3 . | . . . . Level 4 . | . . . . Level 5 . | . . . . High Security . | . . . . Max Security . | . . . . Squads Dispatched 4 | . 2 1 1 Investigation 2 | . 1 1 . Extermination . | . . . . Reinforcement 2 | . 1 . 1 Assault . | . . . . Garrison . | . . . . Intercept . | . . . . Searches Triggered . | . . . . Construction Impeded . | . . . . Haulers Reinforced . | . . . . Active Scanning Responses . | . . . . Cargo Convoy Interrupts . | . . . . Stealth | -11 -10 -9 -8 --------- Run | Jun Mat Mat Mat Distress Signals 4 | . 2 . 2 Communications Jammed . | . . . . Distress Signals . | . . . . Times Spotted 57 | . 23 25 9 Peak Tracking Total 8 | . 5 6 8 Tactical Retreats 4 | . 2 2 . Traps | -11 -10 -9 -8 ------- Run | Jun Mat Mat Mat Traps Triggered 1 | . . 1 . Indirectly . | . . . . Trap Hack Attempts . | . . . . Triggered . | . . . . Disarmed . | . . . . Reprogrammed . | . . . . Reused . | . . . . Traps Extracted . | . . . . Installed . | . . . . Triggered . | . . . . Machines | -11 -10 -9 -8 ---------- Run | Jun Mat Mat Mat Machines Disabled 3 | . . 2 1 Max in Single Turn 1 | . . 1 1 Machines Repaired . | . . . . Machines Sabotaged . | . . . . Overloaded Fab Kills . | . . . . Hacking | -11 -10 -9 -8 --------- Run | Jun Mat Mat Mat Machines Accessed 6 | . 4 2 . Terminals 5 | . 3 2 . Fabricators . | . . . . Repair Stations . | . . . . Recycling Units 1 | . 1 . . Scanalyzers . | . . . . Garrison Access . | . . . . Total Hacks 14 | . 8 6 . Successful 4 | . 2 2 . Failed 10 | . 6 4 . Catastrophic 4 | . 3 1 . Database Lockouts . | . . . . Manual 7 | . 5 2 . Terminals 13 | . 7 6 . Fabricators . | . . . . Repair Stations . | . . . . Recycling Units 1 | . 1 . . Scanalyzers . | . . . . Garrison Access . | . . . . Terminal Hacks 3 | . 1 2 . Locate Traps 2 | . 1 1 . Zone Layout 1 | . . 1 . Fabricator Hacks . | . . . . Repair Station Hacks . | . . . . Recycling Unit Hacks 1 | . 1 . . Report Inventory 1 | . 1 . . Scanalyzer . | . . . . Garrison Access Hacks . | . . . . Unauthorized Hacks . | . . . . Terminals . | . . . . Fabricators . | . . . . Repair Stations . | . . . . Recycling Units . | . . . . Scanalyzers . | . . . . Garrison Access . | . . . . Data Cores Recovered . | . . . . Used . | . . . . Hacking Detections 5 | . 3 2 . Full Trace Events 1 | . 1 . . Feedback Events . | . . . . Feedback Blocked . | . . . . Robot Schematics Acquired . | . . . . Robots Built . | . . . . Authchips . | . . . . Time . | . . . . Total Robot Build Rating . | . . . . Part Schematics Acquired . | . . . . Parts Built . | . . . . Authchips . | . . . . Time . | . . . . Total Part Build Rating . | . . . . Parts Repaired . | . . . . Time . | . . . . Parts Recycled . | . . . . Recycled Matter . | . . . . Retrieved Matter . | . . . . Retrieved Components . | . . . . Parts Scanalyzed . | . . . . Part Schematics Acquired . | . . . . Parts Damaged . | . . . . Bothacking | -11 -10 -9 -8 ------------ Run | Jun Mat Mat Mat Used RIF Installer . | . . . . Robots Hacked . | . . . . Non-combat . | . . . . Combat . | . . . . Robot Hacks Applied . | . . . . Relay Couplers Released . | . . . . Fabnet Peak Effective % . | . . . . Robots Rewired . | . . . . Allies Hacked . | . . . . Hacks Repelled . | . . . . Allies | -11 -10 -9 -8 -------- Run | Jun Mat Mat Mat Total Allies . | . . . . Largest Group . | . . . . Highest-Rated Group . | . . . . Highest-Rated Ally . | . . . . Total Orders . | . . . . Ally Attacks . | . . . . Total Damage . | . . . . Kills . | . . . . Allies Corrupted . | . . . . Allies Melted . | . . . . Intel | -11 -10 -9 -8 ------- Run | Jun Mat Mat Mat Robot Analysis Total . | . . . . Derelict Logs Recovered . | . . . . Drone Launches . | . . . . Drone Recoveries . | . . . . Exploration | -11 -10 -9 -8 ------------- Run | Jun Mat Mat Mat Turns Passed 1648 | 123 616 753 156 Spaces Moved 1037 | 67 427 438 105 Core 17 | 14 . 1 2 Treads . | . . . . Legs . | . . . . Wheels 979 | 53 427 437 62 Hover . | . . . . Flight 41 | . . . 41 Fastest Speed 40 | 50 80 95 40 Average Speed 92 | 81 94 96 78 Slowest Speed 450 | 100 95 450 350 Overloaded Moves . | . . . . Propulsion Burnouts . | . . . . Robots Hopped . | . . . . Cave-ins Triggered . | . . . . Exploration Rate (%) 31 | 5 69 44 9 Regions Visited 3 Branch Regions . Pre-discovered Areas . | . . . . Known Exits Taken 1 | . . 1 . Unknown Exits Taken 2 | 1 1 . . Scrap Searched . | . . . . Spaces Dug . | . . . . Terrain Destroyed 18 | . . . 18 Melee . | . . . . Projectile . | . . . . AOE 18 | . . . 18 Terrain Rammed . | . . . . Walls Destroyed . | . . . . Machines Disabled . | . . . . Actions | -11 -10 -9 -8 --------- Run | Jun Mat Mat Mat Total 1391 | 106 522 620 143 Wait 49 | . . 49 . Move 1034 | 66 426 437 105 Hop . | . . . . Pick Up 43 | 13 12 18 . Fast Attach 4 | 3 . 1 . Attach 29 | 4 2 13 10 Detach 4 | . . 1 3 Swap 22 | 1 9 11 1 Drop 19 | 2 8 8 1 Fire 182 | 17 65 82 18 Melee 5 | . . . 5 Ram . | . . . . Kick . | . . . . Crush . | . . . . Escape Stasis . | . . . . Rewire . | . . . . Trap . | . . . . Miscellaneous . | . . . . Route ------- -11/Junkyard -10/Materials (discovered 3 exits: *Mat / [*Min x2]) -9/Materials (discovered 2 exits: *Mat / *Min) -8/Materials (discovered 2 exits: *Sto x2) History --------- Turn | Location | Event 18 | -11/Junkyard | Discovered new exit (range 14) 124 | -11/Junkyard | Entered Materials 316 | -10/Materials | Build established: Mutant 585 | -10/Materials | Discovered new exit (range 11) 651 | -10/Materials | Discovered new exit (range 16) 698 | -10/Materials | Discovered new exit (range 12) 740 | -10/Materials | Entered another Materials area 740 | -9/Materials | Evolved 2 slots: Utility x2 1087 | -9/Materials | Discovered new exit (range 6) 1147 | -9/Materials | Core integrity fell below 50% 1183 | -9/Materials | Lost 6 parts (2p2n1u1w) 1184 | -9/Materials | Identified exit to Mines 1474 | -9/Materials | Discovered new exit (range 18) 1492 | -9/Materials | Identified exit to Materials 1493 | -9/Materials | Entered another Materials area 1493 | -8/Materials | Evolved 2 slots: Propulsion x1, Utility x1 1495 | -8/Materials | Discovered new exit (range 8) 1502 | -8/Materials | Discovered new exit (range 13) 1503 | -8/Materials | Identified exit to Storage 1608 | -8/Materials | Core integrity fell below 50% 1649 | -8/Materials | Self-destructed Last Messages --------------- 01607_ U-05 Engineer lays Concrete. 01609_ G-47 Trooper destroyed. 01609_ U-05 Engineer lays Concrete. 01610_ U-05 Engineer builds a Door. 01613_ Wheel destroyed. 01614_ U-05 Engineer builds a Wall. 01615_ The unstable cave ceiling collapses. 01615_ Katana destroyed. 01615_ Wheel destroyed. 01619_ G-47 Trooper destroyed. 01620_ Acquired 50 matter. 01621_ Imp. Medium Laser destroyed. 01623_ U-05 Engineer lays Concrete. 01624_ U-05 Engineer builds a Wall. 01627_ Processing Tank disabled. 01632_ Dropped Lrg. Storage Unit. 01644_ Acquired 2 matter. 01645_ U-05 Engineer lays Concrete. 01646_ W-25 Informer sends out distress signal. 01648_ Acquired 28 matter. Map ----- +----------------------------------------------------+ | ?????????????# #??## ##?# #????? | | ?????????????# #??# ### #??????? | | ?????????????# ???# #??????? | | ?????????????# ???# > #??????? | | ?????????????# ???# #??????? | | ?????????????# ???# ###+#######???? | | ?????????????# ???##### ## #???? | | ????????????? ???????# ## """"" #???? | | ????????????? ???????# ## """"" #???? | | ?????????????? ???????# ## """"" #???? | | ????????????????????????# ## #???? | | ????????????????????????#=## """"" #???? | | ????????????????????????# ## """"" #???? | | ????????????????????????#!## "=""" #???? | | ????????????????????????# ## !*[!!! #???? | | ????????????????????????# ####+######???? | | ????????????????????????# g=% #???????? | | ????????????????????????# %##??????? | | ????????????????????????# = #??????? | | ????????????????????????# #??????? | | ????????????????????????# #?????? | | ????????????????????????# # % #?????? | | ????????????????????????# #= #?????? | | ????????????????????????# + #?????? | | ????????????????????????# # #?????? | | ????????????????????????#@*# #?????? | | ??????????????????????? s= # # ###?????? | | ????????????????????? # ???????? | | ??????????????????? """ # ??????? | | ??????????????????##! """ # ?????? | | ???????????????????# """w # ?????? | | ?????????????????? # ? ?????? | | ?????????????????### # ???????? | | ???????????????????###+## + ???????? | | ????????????????????????# # ???????? | | ????????????????????????? ######???????? | | ????????????????????????? ????????????? | | ????????????????????????? ????????????? | | ????????????????????????? #????????????? | | ????????????????????????? #????????????? | | ????????????????????????? ?????????????? | | ????????????????????????? ?????????????? | | ????????????????????????? ?????????????? | | ????????????????????????????????????????? | | ????????????????????????????????????????? | | ????????????????????????????????????????? | | ????????????????????????????????????????? | | ????????????????????????????????????????? | | ????????????????????????????????????????? | | ????????????????????????????????????????? | +----------------------------------------------------+ Best States ------------- Heat Dissipation 31 Energy Generation 14 Energy Capacity 280 Matter Stores 300 Matter Capacity 300 Sight Range 18 Robot Scan Range 14 Terrain Scan Density 85 Armor Coverage 150 Evasion (%) 62 Item Schematics ----------------- None Robot Schematics ------------------ None Fabricated ------------ Nothing Alien Tech Used ----------------- None Achievements -------------- None Challenges ------------ None Game ------ Seed MappingDecoyAccelerator Manual? 0 Play Time 00:26:35 Cumulative 29.8 hours Start 2023.06.06 @ 19:10:09 End 2023.06.06 @ 19:36:39 Sessions 1 Manual Loads 0 Difficulty Rogue Special Mode None Game No. 19 Rogue 19 Adventurer 0 Explorer 0 Win Type - Total 0 Types 0/0/0/0/0/0/0/0/0 Lore% 13 Gallery% 38 Achievement% 21 Wizard Run 0 Options --------- ASCII 0 Keyboard 0 Movement Mouse Keybinds 0 Fullscreen 1 Font 16/SmallcapsGlow Map View 50x54 Tactical HUD 1 Map Filters NONE Filters NONE Steam 1 RUN: 6693609b-9ec9-463d-8194-2fa7c9a1bf13